fUSD/lending_fUSD_20250618
["ID","MTS","AMOUNT","RATE_DAILY","PERIOD"]
[366392339,1750228273480,-1000.0,0.00016931,2]
[366392340,1750228273489,-490.0,0.00016931,2]
[366392341,1750228273499,-1143.38,0.00016931,2]
[366392342,1750228273508,-166.53998098,0.00016931,2]
[366392343,1750228273518,-490.0,0.00016931,2]
[366392344,1750228273527,-890.59,0.00016931,2]
[366392345,1750228273538,-490.0,0.00016931,2]
[366392346,1750228273548,-490.0,0.00016931,2]
[366392347,1750228273558,-490.0,0.00016931,2]
[366392348,1750228273568,-1158.69,0.00016931,2]
[366392349,1750228273577,-490.0,0.00016931,2]
[366392350,1750228273587,-563.05,0.00016931,2]
[366392351,1750228273596,-1200.34,0.00016931,2]
[366392352,1750228273606,-490.0,0.00016931,2]
[366392353,1750228273615,-688.55,0.00016931,2]
[366392354,1750228273624,-1353.23,0.00016931,2]
[366392355,1750228273634,-490.0,0.00016931,2]
[366392356,1750228273644,-1105.26,0.00016931,2]
[366392357,1750228273653,-538.51,0.00016931,2]
[366392358,1750228273662,-490.0,0.00016931,2]
[366392359,1750228273671,-490.0,0.00016931,2]
[366392360,1750228273681,-490.0,0.00016931,2]
[366392361,1750228273690,-1122.3,0.00016931,2]
[366392362,1750228273700,-490.0,0.00016931,2]
[366392363,1750228273709,-490.0,0.00016931,2]
[366392364,1750228273719,-465.35,0.00016931,2]
[366392365,1750228273729,-490.0,0.00016931,2]
[366392366,1750228273738,-490.0,0.00016931,2]
[366392367,1750228273748,-490.0,0.00016931,2]
[366392368,1750228273758,-379.90062193,0.00016931,2]
[366392369,1750228273767,-490.0,0.00016931,2]
[366392370,1750228273777,-490.0,0.00016931,2]
[366392371,1750228273787,-1400.53,0.00016931,2]
[366392372,1750228273798,-611.73,0.00016931,2]
[366392373,1750228273810,-490.0,0.00016931,2]
[366392374,1750228273820,-490.0,0.00016931,2]
[366392375,1750228273829,-490.0,0.00016931,2]
[366392376,1750228273839,-525.85,0.00016931,2]
[366392377,1750228273848,-542.92,0.00016931,2]
[366392378,1750228273857,-783.98,0.00016931,2]
[366392379,1750228273867,-974.44,0.00016931,2]
[366392380,1750228273877,-490.0,0.00016931,2]
[366392381,1750228273886,-580.53,0.00016931,2]
[366392382,1750228273896,-1515.32,0.00016931,2]
[366392383,1750228273906,-1216.73,0.00016931,2]
[366392384,1750228273915,-1263.87,0.00016931,2]
[366392385,1750228273925,-1197.66,0.00016931,2]
[366392386,1750228273938,-629.02,0.00016931,2]
[366392387,1750228273948,-1262.59,0.00016931,2]
[366392388,1750228273958,-648.57,0.00016931,2]
[366392389,1750228273967,-766.61,0.00016931,2]
[366392390,1750228273977,-490.0,0.00016931,2]
[366392391,1750228273987,-1704.7,0.00016931,2]
[366392392,1750228273997,-951.16,0.00016931,2]
[366392393,1750228274006,-490.0,0.00016931,2]
[366392394,1750228274017,-490.0,0.00016931,2]
[366392395,1750228274026,-585.54,0.00016931,2]
[366392396,1750228274036,-1370.21,0.00016931,2]
[366392397,1750228274045,-490.0,0.00016931,2]
[366392398,1750228274055,-1402.84,0.00016931,2]
[366392399,1750228274065,-589.02,0.00016931,2]
[366392400,1750228274075,-1827.76,0.00016931,2]
[366392401,1750228274084,-861.52,0.00016931,2]
[366392402,1750228274095,-1044.31,0.00016931,2]
[366392403,1750228274104,-650.32,0.00016931,2]
[366392404,1750228274114,-490.0,0.00016931,2]
[366392405,1750228274123,-490.0,0.00016931,2]
[366392406,1750228274133,-528.21,0.00016931,2]
[366392407,1750228274143,-490.0,0.00016931,2]
[366392408,1750228274152,-1193.44,0.00016931,2]
[366392409,1750228274162,-490.0,0.00016931,2]
[366392410,1750228274172,-1357.82,0.00016931,2]
[366392411,1750228274182,-492.62,0.00016931,2]
[366392412,1750228274191,-803.54,0.00016931,2]
[366392413,1750228274201,-490.0,0.00016931,2]
[366392414,1750228274211,-490.0,0.00016931,2]
[366392415,1750228274220,-772.08,0.00016931,2]
[366392416,1750228274230,-1187.52,0.00016931,2]
[366392417,1750228274239,-490.0,0.00016931,2]
[366392418,1750228274249,-490.0,0.00016931,2]
[366392419,1750228274259,-490.0,0.00016931,2]
[366392420,1750228274268,-490.0,0.00016931,2]
[366392421,1750228274278,-1256.6,0.00016931,2]
[366392422,1750228274287,-875.18,0.00016931,2]
[366392423,1750228274297,-1169.32,0.00016931,2]
[366392424,1750228274317,-759.5,0.00016931,2]
[366392425,1750228274328,-2010.11,0.00016931,2]
[366392426,1750228274339,-490.0,0.00016931,2]
[366392427,1750228274349,-521.03,0.00016931,2]
[366392428,1750228274359,-645.48,0.00016931,2]
[366392429,1750228274370,-404.49515166,0.00016931,2]
[366392430,1750228274381,-738.62,0.00016931,2]
[366392431,1750228274391,-490.0,0.00016931,2]
[366392432,1750228274401,-587.6,0.00016931,2]
[366392433,1750228274411,-490.0,0.00016931,2]
[366392434,1750228274422,-1226.95,0.00016931,2]
[366392435,1750228274432,-548.59,0.00016931,2]
[366392436,1750228274443,-557.38,0.00016931,2]
[366392437,1750228274453,-490.0,0.00016931,2]
[366392438,1750228274463,-967.69,0.00016931,2]
[366392439,1750228274473,-910.354394,0.00016931,2]
[366392440,1750228274483,-990.25,0.00016931,2]
[366392441,1750228274493,-490.0,0.00016931,2]
[366392442,1750228274503,-587.45,0.00016931,2]
[366392443,1750228274513,-490.0,0.00016931,2]
[366392444,1750228274523,-1173.13,0.00016931,2]
[366392445,1750228274534,-490.0,0.00016931,2]
[366392446,1750228274545,-769.24,0.00016931,2]
[366392447,1750228274555,-490.0,0.00016931,2]
[366392448,1750228274566,-944.05,0.00016931,2]
[366392449,1750228274576,-561.61,0.00016931,2]
[366392450,1750228274587,-757.49,0.00016931,2]
[366392451,1750228274597,-1608.15,0.00016931,2]
[366392452,1750228274607,-490.0,0.00016931,2]
[366392453,1750228274618,-490.0,0.00016931,2]
[366392454,1750228274628,-1003.59,0.00016931,2]
[366392455,1750228274638,-703.88,0.00016931,2]
[366392456,1750228274648,-820.87,0.00016931,2]
[366392457,1750228274658,-580.03,0.00016931,2]
[366392458,1750228274668,-490.0,0.00016931,2]
[366392459,1750228274678,-490.0,0.00016931,2]
[366392460,1750228274688,-567.22,0.00016931,2]
[366392461,1750228274698,-490.0,0.00016931,2]
[366392462,1750228274708,-1000.34,0.00016931,2]
[366392463,1750228274718,-757.28,0.00016931,2]
[366392464,1750228274729,-490.0,0.00016931,2]
[366392465,1750228274744,-3053.246112,0.00016931,2]
[366392466,1750228274755,-490.0,0.00016931,2]
[366392467,1750228274766,-490.0,0.00016931,2]
[366392468,1750228274777,-1942.63,0.00016931,2]
[366392469,1750228274788,-2841.38,0.00016931,2]
[366392470,1750228274798,-490.0,0.00016931,2]
[366392471,1750228274808,-490.0,0.00016931,2]
[366392472,1750228274826,-848.93,0.00016931,2]
[366392473,1750228274839,-490.0,0.00016931,2]
[366392474,1750228274850,-906.12,0.00016931,2]
[366392475,1750228274860,-490.0,0.00016931,2]
[366392476,1750228274871,-1187.13,0.00016931,2]
[366392477,1750228274881,-597.9,0.00016931,2]
[366392478,1750228274891,-709.03,0.00016931,2]
[366392479,1750228274901,-490.0,0.00016931,2]
[366392480,1750228274911,-2053.51,0.00016931,2]
[366392481,1750228274922,-490.0,0.00016931,2]
[366392482,1750228274934,-781.79,0.00016931,2]
[366392483,1750228274948,-473.75818078,0.00016931,2]
[366392484,1750228274958,-490.0,0.00016931,2]
[366392485,1750228274968,-528.41,0.00016931,2]
[366392486,1750228274981,-732.44,0.00016931,2]
[366392487,1750228274991,-553.37,0.00016931,2]
[366392488,1750228275001,-1029.71,0.00016931,2]
[366392489,1750228275013,-467.10583863,0.00016931,2]
[366392490,1750228275025,-490.0,0.00016931,2]
[366392491,1750228275036,-533.39,0.00016931,2]
[366392492,1750228275047,-702.2,0.00016931,2]
[366392493,1750228275057,-490.0,0.00016931,2]
[366392494,1750228275067,-490.0,0.00016931,2]
[366392495,1750228275077,-730.17,0.00016931,2]
[366392496,1750228275087,-490.0,0.00016931,2]
[366392497,1750228275097,-490.0,0.00016931,2]
[366392498,1750228275106,-490.0,0.00016931,2]
[366392499,1750228275117,-546.87,0.00016931,2]
[366392500,1750228275127,-1471.12,0.00016931,2]
[366392501,1750228275137,-490.0,0.00016931,2]
[366392502,1750228275147,-1340.89,0.00016931,2]
[366392503,1750228275156,-2086.97,0.00016931,2]
[366392504,1750228275166,-490.0,0.00016931,2]
[366392505,1750228275176,-665.94,0.00016931,2]
[366392506,1750228275186,-538.77771618,0.00016931,2]
[366392507,1750228275200,-490.0,0.00016931,2]
[366392508,1750228275210,-490.0,0.00016931,2]
[366392509,1750228275220,-685.87,0.00016931,2]
[366392510,1750228275231,-534.62,0.00016931,2]
[366392511,1750228275241,-763.18,0.00016931,2]
[366392512,1750228275251,-490.0,0.00016931,2]
[366392513,1750228275261,-490.0,0.00016931,2]
[366392514,1750228275271,-490.0,0.00016931,2]
[366392515,1750228275281,-490.0,0.00016931,2]
[366392516,1750228275290,-490.0,0.00016931,2]
[366392517,1750228275300,-2228.96,0.00016931,2]
[366392518,1750228275310,-484.91633445,0.00016931,2]
[366392519,1750228275320,-490.0,0.00016931,2]
[366392520,1750228275330,-1681.55,0.00016931,2]
[366392521,1750228275340,-709.77,0.00016931,2]
[366392522,1750228275350,-490.0,0.00016931,2]
[366392523,1750228275359,-1536.75,0.00016931,2]
[366392524,1750228275369,-570.79,0.00016931,2]
[366392525,1750228275380,-1834.91,0.00016931,2]
[366392526,1750228275390,-1366.99,0.00016931,2]
[366392527,1750228275400,-594.07,0.00016931,2]
[366392528,1750228275410,-746.85,0.00016931,2]
[366392529,1750228275420,-490.0,0.00016931,2]
[366392530,1750228275430,-1349.21,0.00016931,2]
[366392531,1750228275440,-490.0,0.00016931,2]
[366392532,1750228275449,-1085.53,0.00016931,2]
[366392533,1750228275463,-1198.25,0.00016931,2]
[366392534,1750228275473,-602.22,0.00016931,2]
[366392535,1750228275482,-1324.35,0.00016931,2]
[366392536,1750228275492,-1950.78,0.00016931,2]
[366392537,1750228275502,-631.56,0.00016931,2]
[366392538,1750228275512,-490.0,0.00016931,2]
[366392539,1750228275522,-490.0,0.00016931,2]
[366392540,1750228275532,-2472.57,0.00016931,2]
[366392541,1750228275542,-490.0,0.00016931,2]
[366392542,1750228275552,-1785.85,0.00016931,2]
[366392543,1750228275562,-490.0,0.00016931,2]
[366392544,1750228275572,-490.0,0.00016931,2]
[366392545,1750228275582,-604.04,0.00016931,2]
[366392546,1750228275592,-561.79,0.00016931,2]
[366392547,1750228275602,-1534.27,0.00016931,2]
[366392548,1750228275612,-490.0,0.00016931,2]
[366392549,1750228275621,-490.0,0.00016931,2]
[366392550,1750228275632,-490.0,0.00016931,2]
[366392551,1750228275641,-617.04,0.00016931,2]
[366392552,1750228275651,-1565.84,0.00016931,2]
[366392553,1750228275661,-490.0,0.00016931,2]
[366392554,1750228275671,-2447.45,0.00016931,2]
[366392555,1750228275681,-644.77,0.00016931,2]
[366392556,1750228275903,-799.94,0.00016931,2]
[366392557,1750228275913,-490.0,0.00016931,2]
[366392558,1750228275928,-581.61,0.00016931,2]
[366392559,1750228275946,-490.0,0.00016931,2]
[366392560,1750228275955,-552.49,0.00016931,2]
[366392561,1750228275965,-751.78,0.00016931,2]
[366392562,1750228275975,-1757.44,0.00016931,2]
[366392563,1750228275984,-687.4,0.00016931,2]
[366392564,1750228275993,-490.0,0.00016931,2]
[366392565,1750228276003,-593.86,0.00016931,2]
[366392566,1750228276012,-680.76,0.00016931,2]
[366392567,1750228276023,-688.59,0.00016931,2]
[366392568,1750228276032,-490.0,0.00016931,2]
[366392569,1750228276041,-490.0,0.00016931,2]
[366392570,1750228276051,-490.0,0.00016931,2]
[366392571,1750228276060,-490.0,0.00016931,2]
[366392572,1750228276070,-490.0,0.00016931,2]
[366392573,1750228276079,-1841.51,0.00016931,2]
[366392574,1750228276089,-490.0,0.00016931,2]
[366392575,1750228276099,-1182.93,0.00016931,2]
[366392576,1750228276109,-490.0,0.00016931,2]
[366392577,1750228276119,-502.78,0.00016931,2]
[366392578,1750228276129,-490.0,0.00016931,2]
[366392579,1750228276139,-151.0,0.00016931,2]
[366392580,1750228276149,-490.29,0.00016931,2]
[366392581,1750228276158,-2057.82,0.00016931,2]
[366392582,1750228276168,-490.0,0.00016931,2]
[366392583,1750228276177,-490.0,0.00016931,2]
[366392584,1750228276187,-344.27451791,0.00016931,2]
[366392585,1750228276196,-490.0,0.00016931,2]
[366392586,1750228276206,-490.0,0.00016931,2]
[366392587,1750228276216,-1728.94,0.00016931,2]
[366392588,1750228276225,-490.0,0.00016931,2]
[366392589,1750228276235,-1130.61,0.00016931,2]
[366392590,1750228276244,-602.72,0.00016931,2]
[366392591,1750228276254,-490.0,0.00016931,2]
[366392592,1750228276264,-1211.07,0.00016931,2]
[366392593,1750228276274,-490.0,0.00016931,2]
[366392594,1750228276284,-1039.44,0.00016931,2]
[366392595,1750228276293,-535.02,0.00016931,2]
[366392596,1750228276303,-490.0,0.00016931,2]
[366392597,1750228276313,-632.32,0.00016931,2]
[366392598,1750228276323,-490.0,0.00016931,2]
[366392599,1750228276333,-1450.05,0.00016931,2]
[366392600,1750228276343,-1191.23,0.00016931,2]
[366392601,1750228276353,-658.83,0.00016931,2]
[366392602,1750228276363,-1957.38,0.00016931,2]
[366392603,1750228276377,-490.0,0.00016931,2]
[366392604,1750228276387,-2010.37,0.00016931,2]
[366392605,1750228276397,-1218.56,0.00016931,2]
[366392606,1750228276407,-179.77602948,0.00016931,2]
[366392607,1750228276417,-490.0,0.00016931,2]
[366392608,1750228276427,-490.0,0.00016931,2]
[366392609,1750228276436,-778.8,0.00016931,2]
[366392610,1750228276446,-873.25,0.00016931,2]
[366392611,1750228276456,-490.0,0.00016931,2]
[366392612,1750228276466,-1297.98,0.00016931,2]
[366392613,1750228276476,-490.0,0.00016931,2]
[366392614,1750228276486,-894.93,0.00016931,2]
[366392615,1750228276495,-490.0,0.00016931,2]
[366392616,1750228276505,-490.0,0.00016931,2]
[366392617,1750228276515,-490.0,0.00016931,2]
[366392618,1750228276525,-490.0,0.00016931,2]
[366392619,1750228276536,-639.62,0.00016931,2]
[366392620,1750228276547,-548.35,0.00016931,2]
[366392621,1750228276557,-490.0,0.00016931,2]
[366392622,1750228276567,-1604.13,0.00016931,2]
[366392623,1750228276577,-668.18,0.00016931,2]
[366392624,1750228276586,-2818.65,0.00016931,2]
[366392625,1750228276596,-2340.71,0.00016931,2]
[366392626,1750228276606,-490.0,0.00016931,2]
[366392627,1750228276616,-708.31,0.00016931,2]
[366392628,1750228276626,-490.0,0.00016931,2]
[366392629,1750228276637,-1354.04,0.00016931,2]
[366392630,1750228276650,-24970.95,0.00016931,2]
[366392631,1750228276660,-1382.74,0.00016931,2]
[366392632,1750228276670,-1285.03,0.00016931,2]
[366392633,1750228276680,-1771.78,0.00016931,2]
[366392634,1750228276690,-2300.13,0.00016931,2]
[366392635,1750228276699,-490.0,0.00016931,2]
[366392636,1750228276709,-490.0,0.00016931,2]
[366392637,1750228276719,-490.0,0.00016931,2]
[366392638,1750228276728,-4919.38,0.00016931,2]
[366392639,1750228276738,-3928.17,0.00016931,2]
[366392640,1750228276749,-701.12,0.00016931,2]
[366392641,1750228276759,-1316.53,0.00016931,2]
[366392642,1750228276769,-583.00254652,0.00016931,2]
[366392643,1750228276779,-490.0,0.00016931,2]
[366392644,1750228276789,-490.0,0.00016931,2]
[366392645,1750228276799,-904.86,0.00016931,2]
[366392646,1750228276809,-531.77,0.00016931,2]
[366392647,1750228276824,-948.0,0.00016931,2]
[366392648,1750228276835,-5405.55,0.00016931,2]
[366392649,1750228276845,-490.0,0.00016931,2]
[366392650,1750228276855,-2197.97,0.00016931,2]
[366392651,1750228276864,-4650.41,0.00016931,2]
[366392652,1750228276873,-1635.79,0.00016931,2]
[366392653,1750228276883,-621.18,0.00016931,2]
[366392654,1750228276893,-1724.27,0.00016931,2]
[366392655,1750228276902,-2741.66,0.00016931,2]
[366392656,1750228276912,-490.0,0.00016931,2]
[366392657,1750228276922,-816.96,0.00016931,2]
[366392658,1750228276932,-1201.99,0.00016931,2]
[366392659,1750228276944,-6106.75,0.00016931,2]
[366392660,1750228276954,-490.0,0.00016931,2]
[366392661,1750228276963,-1330.77,0.00016931,2]
[366392662,1750228276974,-17594.43,0.00016931,2]
[366392663,1750228276987,-490.0,0.00016931,2]
[366392664,1750228276996,-2596.87,0.00016931,2]
[366392665,1750228277006,-2323.03,0.00016931,2]
[366392666,1750228277019,-490.0,0.00016931,2]
[366392667,1750228277029,-1352.34,0.00016931,2]
[366392668,1750228277039,-4695.71,0.00016931,2]
[366392669,1750228277049,-1264.7,0.00016931,2]
[366392670,1750228277059,-906.91,0.00016931,2]
[366392671,1750228277069,-490.0,0.00016931,2]
[366392672,1750228277078,-8109.14,0.00016931,2]
[366392673,1750228277088,-1003.3,0.00016931,2]
[366392674,1750228277098,-1364.12,0.00016931,2]
[366392675,1750228277108,-604.06,0.00016931,2]
[366392676,1750228277118,-1291.35,0.00016931,2]
[366392677,1750228277128,-490.0,0.00016931,2]
[366392678,1750228277138,-490.0,0.00016931,2]
[366392679,1750228277148,-22297.49,0.00016931,2]
[366392680,1750228277158,-1599.41,0.00016931,2]
[366392681,1750228277168,-809.73,0.00016931,2]
[366392682,1750228277178,-3599.46,0.00016931,2]
[366392683,1750228277188,-1337.85,0.00016931,2]
[366392684,1750228277199,-1838.96,0.00016931,2]
[366392685,1750228277209,-490.0,0.00016931,2]
[366392686,1750228277218,-3195.53,0.00016931,2]
[366392687,1750228277229,-953.34,0.00016931,2]
[366392688,1750228277239,-1247.37,0.00016931,2]
[366392689,1750228277249,-2070.27,0.00016931,2]
[366392690,1750228277258,-515.98,0.00016931,2]
[366392691,1750228277273,-6821.37,0.00016931,2]
[366392692,1750228277282,-490.0,0.00016931,2]
[366392693,1750228277292,-912.18,0.00016931,2]
[366392694,1750228277302,-1204.62,0.00016931,2]
[366392695,1750228277312,-490.0,0.00016931,2]
[366392696,1750228277322,-1644.07,0.00016931,2]
[366392697,1750228277331,-4677.6,0.00016931,2]
[366392698,1750228277341,-490.0,0.00016931,2]
[366392699,1750228277351,-1298.54,0.00016931,2]
[366392700,1750228277361,-730.79,0.00016931,2]
[366392701,1750228277372,-3491.36,0.00016931,2]
[366392702,1750228277381,-1391.9,0.00016931,2]
[366392703,1750228277391,-490.0,0.00016931,2]
[366392704,1750228277400,-1743.86,0.00016931,2]
[366392705,1750228277410,-619.96,0.00016931,2]
[366392706,1750228277420,-490.0,0.00016931,2]
[366392707,1750228277429,-14794.3,0.00016931,2]
[366392708,1750228277439,-490.0,0.00016931,2]
[366392709,1750228277449,-1317.23,0.00016931,2]
[366392710,1750228277458,-6713.86,0.00016931,2]
[366392711,1750228277468,-1298.76,0.00016931,2]
[366392712,1750228277478,-1871.26,0.00016931,2]
[366392713,1750228277488,-8496.75,0.00016931,2]
[366392714,1750228277498,-1204.36,0.00016931,2]
[366392715,1750228277508,-1174.88,0.00016931,2]
[366392716,1750228277518,-490.0,0.00016931,2]
[366392717,1750228277528,-604.04,0.00016931,2]
[366392718,1750228277538,-490.0,0.00016931,2]
[366392719,1750228277548,-917.97,0.00016931,2]
[366392720,1750228277558,-853.87,0.00016931,2]
[366392721,1750228277568,-2061.05,0.00016931,2]
[366392722,1750228277578,-1654.92,0.00016931,2]
[366392723,1750228277589,-546.91,0.00016931,2]
[366392724,1750228277599,-949.12,0.00016931,2]
[366392725,1750228277610,-821.18,0.00016931,2]
[366392726,1750228277620,-1926.16,0.00016931,2]
[366392727,1750228277631,-3446.24,0.00016931,2]
[366392728,1750228277641,-490.0,0.00016931,2]
[366392729,1750228277652,-1059.31,0.00016931,2]
[366392730,1750228277661,-1461.57,0.00016931,2]
[366392731,1750228277671,-490.0,0.00016931,2]
[366392732,1750228277681,-3508.56,0.00016931,2]
[366392733,1750228277691,-728.33,0.00016931,2]
[366392734,1750228277700,-490.0,0.00016931,2]
[366392735,1750228277710,-490.0,0.00016931,2]
[366392736,1750228277720,-2662.3,0.00016931,2]
[366392737,1750228277730,-1702.95,0.00016931,2]
[366392738,1750228277739,-490.0,0.00016931,2]
[366392739,1750228277749,-2593.57,0.00016931,2]
[366392740,1750228277760,-1495.29,0.00016931,2]
[366392741,1750228277770,-1776.09,0.00016931,2]
[366392742,1750228277780,-8590.2,0.00016931,2]
[366392743,1750228277790,-2261.65,0.00016931,2]
[366392744,1750228277800,-1868.55,0.00016931,2]
[366392745,1750228277810,-1642.36,0.00016931,2]
[366392746,1750228277819,-692.43,0.00016931,2]
[366392747,1750228277829,-1860.01,0.00016931,2]
[366392748,1750228277839,-490.0,0.00016931,2]
[366392749,1750228277850,-490.0,0.00016931,2]
[366392750,1750228277859,-3807.85,0.00016931,2]
[366392751,1750228277869,-3395.25,0.00016931,2]
[366392752,1750228277878,-2610.07,0.00016931,2]
[366392753,1750228277888,-642.29,0.00016931,2]
[366392754,1750228277898,-490.0,0.00016931,2]
[366392755,1750228277907,-490.0,0.00016931,2]
[366392756,1750228277917,-2071.04,0.00016931,2]
[366392757,1750228277926,-685.37,0.00016931,2]
[366392758,1750228277940,-1744.39,0.00016931,2]
[366392759,1750228277950,-490.0,0.00016931,2]
[366392760,1750228277960,-490.0,0.00016931,2]
[366392761,1750228277970,-2889.51,0.00016931,2]
[366392762,1750228277981,-1207.61,0.00016931,2]
[366392763,1750228277991,-3173.6,0.00016931,2]
[366392764,1750228278000,-5597.88,0.00016931,2]
[366392765,1750228278011,-1151.85,0.00016931,2]
[366392766,1750228278020,-490.0,0.00016931,2]
[366392767,1750228278030,-12878.5,0.00016931,2]
[366392768,1750228278040,-490.0,0.00016931,2]
[366392769,1750228278050,-2422.37,0.00016931,2]
[366392770,1750228278061,-1446.99,0.00016931,2]
[366392771,1750228278071,-1418.79,0.00016931,2]
[366392772,1750228278082,-6588.14,0.00016931,2]
[366392773,1750228278093,-743.73,0.00016931,2]
[366392774,1750228278104,-1952.64,0.00016931,2]
[366392775,1750228278114,-2892.29,0.00016931,2]
[366392776,1750228278125,-1961.57,0.00016931,2]
[366392777,1750228278135,-490.0,0.00016931,2]
[366392778,1750228278145,-490.0,0.00016931,2]
[366392779,1750228278155,-9366.78,0.00016931,2]
[366392780,1750228278166,-8461.44,0.00016931,2]
[366392781,1750228278176,-1255.38,0.00016931,2]
[366392782,1750228278187,-490.0,0.00016931,2]
[366392783,1750228278197,-490.0,0.00016931,2]
[366392784,1750228278207,-3395.91,0.00016931,2]
[366392785,1750228278217,-767.12,0.00016931,2]
[366392786,1750228278227,-957.43,0.00016931,2]
[366392787,1750228278236,-2403.38,0.00016931,2]
[366392788,1750228278246,-490.0,0.00016931,2]
[366392789,1750228278256,-3179.37,0.00016931,2]
[366392790,1750228278266,-3012.65,0.00016931,2]
[366392791,1750228278276,-7898.84,0.00016931,2]
[366392792,1750228278286,-490.0,0.00016931,2]
[366392793,1750228278297,-490.0,0.00016931,2]
[366392794,1750228278307,-2333.91,0.00016931,2]
[366392795,1750228278318,-4677.88,0.00016931,2]
[366392796,1750228278328,-490.0,0.00016931,2]
[366392797,1750228278339,-490.0,0.00016931,2]
[366392798,1750228278350,-214.5674032,0.00016931,2]
[366392799,1750228278361,-1846.4,0.00016931,2]
[366392800,1750228278371,-632.87,0.00016931,2]
[366392801,1750228278382,-2189.43,0.00016931,2]
[366392802,1750228278393,-714.33,0.00016931,2]
[366392803,1750228278404,-640.03,0.00016931,2]
[366392804,1750228278414,-2545.49,0.00016931,2]
[366392805,1750228278424,-831.52,0.00016931,2]
[366392806,1750228278435,-490.0,0.00016931,2]
[366392807,1750228278445,-3883.95,0.00016931,2]
[366392808,1750228278455,-1399.79,0.00016931,2]
[366392809,1750228278464,-490.0,0.00016931,2]
[366392810,1750228278474,-490.0,0.00016931,2]
[366392811,1750228278484,-1347.1,0.00016931,2]
[366392812,1750228278494,-880.23,0.00016931,2]
[366392813,1750228278504,-1384.45,0.00016931,2]
[366392814,1750228278515,-397.77991249,0.00016931,2]
[366392815,1750228279879,-227.67920314,0.00016338,2]
[366392816,1750228279890,-2022.03,0.00016602,2]
[366392817,1750228279900,-528.44,0.00016602,2]
[366392818,1750228279911,-490.0,0.00016602,2]
[366392819,1750228279921,-159.11587244,0.00016667,2]
[366392820,1750228279931,-2022.03,0.00016767,2]
[366392821,1750228279945,-528.44,0.00016767,2]
[366392822,1750228279955,-490.0,0.00016767,2]
[366392823,1750228279965,-301.68008751,0.00016931,2]
[366392824,1750228279976,-490.0,0.00016931,2]
[366392825,1750228279986,-918.00675627,0.00016931,2]
[366392826,1750228280012,-1601.35324373,0.00016931,2]
[366392827,1750228280023,-490.0,0.00016931,2]
[366392828,1750228280033,-8159.29,0.00016931,2]
[366392829,1750228280044,-367.05732897,0.00016931,2]
[366392830,1750228280056,-965.10267103,0.00016931,2]
[366392831,1750228280067,-523.77332919,0.00016931,2]
[366392832,1750228280187,-765.99667081,0.00016931,2]
[366392833,1750228280197,-490.0,0.00016931,2]
[366392834,1750228280208,-1532.53,0.00016931,2]
[366392835,1750228280218,-4272.05,0.00016931,2]
[366392836,1750228280228,-1104.49,0.00016931,2]
[366392837,1750228280239,-490.0,0.00016931,2]
[366392838,1750228280249,-1650.39,0.00016931,2]